bitfinex/quotes_ETHUSD_20251031
["timestamp","ask_amount","ask_price","bid_price","bid_amount"]
[1761914393141,0.0250478,3863.3,3863.1,0.6516]
[1761914393345,1.81201084,3863.2,3862.8,0.1942]
[1761914393561,1.83706405,3863.1,3862.5,0.4945]
[1761914393760,1.83706405,3863.1,3861.6,0.1946]
[1761914393761,6.89169994,3862.8,3862.1,0.1942]
[1761914393966,1.81238791,3862.4,3862.1,0.1942]
[1761914394164,0.0250478,3862.3,3862.1,0.1942]
[1761914394464,0.0250478,3862.4,3862.1,0.1942]
[1761914394652,1.09571086,3862.8,3862.1,0.1942]
[1761914394653,0.57743697,3862.6,3862.1,0.1942]
[1761914394847,1.81236704,3862.4,3861.7,0.4945]
[1761914395041,1.83746241,3862.3,3861.7,0.4945]
[1761914395242,0.0250478,3862.3,3861.7,0.4945]
[1761914395547,0.0250478,3862.5,3861.7,0.4945]
[1761914395947,1.81243271,3862.3,3861.7,0.4945]
[1761914396148,1.81243271,3862.3,3861.7,0.52039533]
[1761914396459,0.57743697,3862.5,3861.7,0.52039533]
[1761914396460,0.0250478,3862.2,3861.7,0.52039533]
[1761914396760,1.81244471,3862.2,3861.7,0.4945]
[1761914397059,0.0250478,3862.1,3861.7,0.4945]
[1761914397275,0.0250478,3862.4,3861.7,0.4945]
[1761914397448,0.55238917,3862.4,3862.3,0.6516]
[1761914397649,0.0250478,3862.5,3862.3,0.6516]
[1761914397832,1.83738947,3862.5,3862.3,0.6516]
[1761914398247,1.81234465,3862.4,3862.3,0.6516]
[1761914398447,0.0250478,3862.5,3862.3,0.6516]
[1761914398655,0.55238917,3862.7,3862.4,0.9519]
[1761914398852,2.36459358,3862.7,3862.4,0.9519]
[1761914399055,0.55238917,3862.7,3862.6,0.4574]
[1761914399256,0.1288,3862.6,3862.3,0.1942]
[1761914399455,1.81234465,3862.4,3862.3,0.1942]
[1761914399641,1.81234465,3862.4,3862.0,0.4945]
[1761914399851,0.1288,3862.0,3861.7,0.4945]
[1761914400032,1.81339263,3862.3,3861.7,0.4945]
[1761914400231,1.81339263,3862.3,3862.2,0.4574]
[1761914400765,1.81339263,3862.3,3861.7,0.4945]
[1761914400766,0.1288,3862.2,3861.7,0.4945]
[1761914401061,1.83754363,3862.1,3861.7,0.4945]
[1761914401265,1.83754363,3862.1,3861.6,0.1966]
[1761914401266,1.81262623,3861.8,3861.6,0.1966]
[1761914401467,1.96572097,3861.7,3861.6,0.002]
[1761914401871,0.1530478,3861.7,3861.6,0.4594]
[1761914402033,0.001,3862.3,3861.6,0.4594]
[1761914402034,0.001,3862.3,3861.6,0.9539]
[1761914402231,1.81248543,3862.1,3861.7,0.4574]
[1761914402452,1.83762674,3862.0,3861.7,0.4574]
[1761914402649,0.57951799,3862.1,3861.8,0.4945]
[1761914402867,0.43129689,3862.1,3861.7,0.4574]
[1761914403070,1.81257257,3862.0,3861.7,0.4574]
[1761914403570,1.94147317,3861.7,3861.6,0.002]
[1761914403876,19.28869726,3861.7,3861.6,0.002]
[1761914404041,20.12905346,3861.7,3861.6,0.002]
[1761914404241,20.83923836,3861.7,3861.6,0.002]
[1761914404451,7.19402836,3861.7,3861.6,0.002]
[1761914404971,9.62298136,3861.7,3861.6,0.002]
[1761914405271,10.5469269,3861.7,3861.6,0.002]
[1761914405470,9.6815229,3861.7,3861.6,0.002]
[1761914405635,7.6017769,3861.7,3861.6,0.002]
[1761914405837,7.5519119,3861.7,3861.6,0.002]
[1761914406549,4.6907689,3861.7,3861.6,0.002]
[1761914406767,3.76682336,3861.7,3861.6,0.002]
[1761914406964,0.55447019,3861.7,3861.6,0.4594]
[1761914407141,1.24748696,3862.0,3861.6,0.9539]
[1761914407344,1.24748696,3862.2,3861.8,0.4574]
[1761914407582,0.001,3862.3,3861.7,0.02589533]
[1761914407583,0.1288,3861.8,3861.7,0.52039533]
[1761914408083,0.1288,3861.8,3861.7,0.97779533]
[1761914408294,0.0260478,3862.3,3861.6,0.002]
[1761914408588,1.24748696,3862.2,3861.6,0.002]
[1761914408889,1.81267317,3861.7,3861.6,0.002]
[1761914409090,1.27253476,3862.2,3861.6,0.002]
[1761914409091,0.69301677,3862.0,3861.6,0.002]
[1761914409393,0.69301677,3862.0,3861.6,0.9539]
[1761914409697,0.55447019,3862.1,3861.9,0.4574]
[1761914409991,1.81250235,3862.1,3861.9,0.4574]
[1761914410191,1.8125793,3861.9,3861.6,0.002]
[1761914410404,0.5033478,3862.0,3861.6,0.002]
[1761914410558,1.81267317,3861.7,3861.6,0.002]
[1761914410958,8.17246836,3861.7,3861.6,0.002]
[1761914411192,7.70828779,3861.7,3861.6,0.002]
[1761914411359,5.30792436,3861.7,3861.6,0.002]
[1761914411563,7.16940436,3861.7,3861.6,0.002]
[1761914411764,7.57490836,3861.7,3861.6,0.002]
[1761914412073,29.578318,3861.7,3861.6,0.002]
[1761914412324,29.578318,3861.7,3861.1,0.005]
[1761914412325,2.2184119,3861.2,3861.1,0.005]
[1761914412473,32.84848602,3861.2,3861.1,0.005]
[1761914412800,32.80375602,3861.2,3861.1,0.005]
[1761914412959,15.99648309,3861.2,3861.1,0.005]
[1761914413287,14.49115211,3861.2,3861.1,0.005]
[1761914413490,14.95485211,3861.2,3861.1,0.005]
[1761914414087,22.59770111,3861.2,3861.1,0.005]
[1761914414758,13.73595609,3861.2,3861.1,0.005]
[1761914414958,13.87913209,3861.2,3861.1,0.005]
[1761914415495,7.28397843,3861.2,3861.1,0.005]
[1761914415859,6.86412609,3861.2,3861.1,0.005]
[1761914416061,12.76010709,3861.2,3861.1,0.005]
[1761914416269,7.18289074,3861.2,3861.1,0.005]
[1761914417063,10.71190874,3861.2,3861.1,0.005]
[1761914417397,10.29198909,3861.2,3861.1,0.005]
[1761914417775,11.44500874,3861.2,3861.1,0.005]
[1761914417986,21.26632974,3861.2,3861.1,0.005]
[1761914418172,16.30784274,3861.2,3861.1,0.005]
[1761914418378,1.81337754,3860.2,3860.1,0.005]
[1761914418588,0.0683,3859.2,3857.1,0.005]
[1761914418797,4.418567,3859.0,3858.1,0.1981]
[1761914418976,6.80794397,3859.2,3858.2,0.02591882]
[1761914418977,0.0250478,3858.9,3858.2,0.02591882]
[1761914419182,1.8142411,3858.4,3858.1,0.1981]
[1761914419516,4.266342,3858.2,3858.1,0.005]
[1761914419666,1.99566506,3858.4,3858.1,0.005]
[1761914419667,1.39968,3858.7,3858.1,0.005]
[1761914419872,1.8142711,3858.3,3858.1,0.196]
[1761914420102,0.0250478,3858.6,3858.1,0.196]
[1761914420290,1.81425249,3858.4,3858.2,0.9671]
[1761914420502,1.81425249,3858.4,3858.3,0.4847]
[1761914420806,1.81431755,3858.2,3858.1,0.196]
[1761914421010,6.60519293,3858.2,3857.1,0.1981]
[1761914421215,2.531907,3857.8,3857.1,0.1981]
[1761914421504,1.81474242,3857.3,3857.1,0.1981]
[1761914421704,1.81468552,3857.5,3857.2,0.4847]
[1761914421916,1.81473197,3857.4,3857.2,0.4847]
[1761914422765,1.81478792,3857.2,3857.1,0.1981]
[1761914422971,2.18024469,3857.2,3857.1,0.005]
[1761914423204,27.43313969,3857.2,3857.1,0.005]
[1761914423372,17.62152369,3857.2,3857.1,0.005]
[1761914423580,19.02120369,3857.2,3857.1,0.005]
[1761914424303,20.03277369,3857.2,3857.1,0.005]
[1761914425216,23.06128469,3857.2,3857.1,0.005]
[1761914425419,1.39968,3857.2,3857.1,0.005]
[1761914425718,1.81475205,3857.3,3857.1,0.005]
[1761914425935,2.0892608,3857.2,3857.1,0.196]
[1761914426080,2.064213,3857.2,3857.1,0.196]
[1761914426286,15.127573,3857.3,3857.1,0.6807]
[1761914426819,1.83983572,3857.2,3857.1,0.005]
[1761914427121,0.0250478,3857.2,3857.1,0.005]
[1761914427344,0.0250478,3857.2,3857.1,1.1631]
[1761914427518,0.405504,3858.1,3857.1,1.1631]
[1761914427519,0.405504,3857.8,3857.1,1.1631]
[1761914427705,1.39968,3857.5,3857.1,1.1631]
[1761914427907,0.0250478,3857.5,3857.1,0.6807]
[1761914428094,21.493458,3857.7,3857.1,0.005]
[1761914428298,0.0250478,3857.6,3857.1,0.005]
[1761914428497,1.81478792,3857.2,3857.1,0.005]
[1761914428707,0.0250478,3857.2,3857.1,0.005]
[1761914428912,0.0250478,3857.2,3857.1,0.196]
[1761914429087,1.83983572,3857.2,3857.1,0.196]
[1761914429287,0.0250478,3857.2,3857.1,0.005]
[1761914429487,1.81478792,3857.2,3857.1,0.005]
[1761914429694,2.56028792,3857.2,3857.1,0.005]
[1761914430014,10.90240172,3857.2,3857.1,0.005]
[1761914430226,10.87735392,3857.2,3857.1,0.005]
[1761914430711,19.05017792,3857.2,3857.1,0.005]
[1761914430903,19.34297792,3857.2,3857.1,0.005]
[1761914431109,19.74980137,3857.2,3857.1,0.005]
[1761914431541,20.29676746,3857.2,3857.1,0.005]
[1761914431704,30.19564237,3857.2,3857.1,0.005]
[1761914431908,25.01105537,3857.2,3857.1,0.005]
[1761914432316,25.01105537,3857.2,3856.8,0.46218791]
[1761914432317,39.59704901,3856.9,3856.8,0.46218791]
[1761914432625,26.86242901,3856.9,3856.8,0.46218791]
[1761914432841,5.120128,3856.9,3856.8,0.46218791]
[1761914433125,4.124452,3856.9,3856.8,0.46218791]
[1761914433292,16.82981373,3856.9,3856.8,0.46218791]
[1761914433493,18.61969501,3856.9,3856.8,0.46218791]
[1761914433800,10.93562919,3856.9,3856.8,0.46218791]
[1761914433997,35.24963619,3856.9,3856.8,0.46218791]
[1761914434521,18.24336319,3856.9,3856.8,0.46218791]
[1761914434709,4.78688218,3856.9,3856.8,0.46218791]
[1761914434885,2.21206418,3856.9,3856.8,0.46218791]
[1761914435223,0.0250478,3857.2,3856.8,0.94688791]
[1761914435425,3.221146,3857.1,3856.8,0.46218791]
[1761914435624,3.2144707,3857.2,3856.8,0.46218791]
[1761914435625,9.202006,3856.9,3856.8,0.46218791]
[1761914435921,0.0250478,3857.0,3856.8,0.46218791]
[1761914435922,2.907903,3857.0,3856.8,0.46218791]
[1761914436221,5.97693593,3857.4,3856.8,0.42156791]
[1761914436222,0.0250478,3856.9,3856.8,0.42156791]
[1761914436589,7.6153078,3856.9,3856.8,0.42156791]
[1761914436789,1.39968,3857.3,3856.8,0.42156791]
[1761914436790,1.805184,3857.3,3856.8,0.90626791]
[1761914436991,1.39968,3857.0,3856.8,0.90626791]
[1761914437223,0.0250478,3856.9,3856.8,0.90826791]
[1761914437438,0.0250478,3857.2,3856.8,0.90826791]
[1761914437594,5.250146,3857.1,3856.8,0.90826791]
[1761914437794,0.0250478,3857.0,3856.8,0.90826791]
[1761914438026,0.0250478,3857.3,3856.8,0.90826791]
[1761914438231,0.0250478,3857.3,3856.9,0.4847]
[1761914438403,0.0250478,3857.3,3856.9,0.9671]
[1761914438731,0.0250478,3857.3,3857.2,0.6757]
[1761914438940,1.14270804,3858.2,3857.2,0.6757]
[1761914438941,0.0250478,3857.4,3857.2,0.6757]
[1761914439104,1.39968,3857.6,3857.2,0.6757]
[1761914439294,0.0250478,3857.5,3857.2,0.6757]
[1761914439495,1.39968,3857.7,3857.2,0.6757]
[1761914439810,0.0250478,3857.6,3857.2,0.6757]
[1761914439989,1.39968,3857.7,3857.2,0.6757]
[1761914440192,0.0250478,3857.6,3857.2,0.6757]
[1761914440395,1.39968,3857.7,3857.2,0.6757]
[1761914440641,0.0250478,3857.6,3857.2,0.6757]
[1761914440794,1.39968,3857.7,3857.2,0.6757]
[1761914440996,0.0250478,3857.6,3857.2,0.6757]
[1761914441199,1.39968,3857.7,3857.2,0.6757]
[1761914441439,0.0250478,3857.6,3857.2,0.6757]
[1761914441646,0.0250478,3857.6,3857.2,1.1581]
[1761914441842,1.39968,3857.6,3857.2,1.1581]
[1761914442002,0.405504,3858.1,3857.2,1.1581]
[1761914442003,0.0250478,3857.5,3857.2,1.1581]
[1761914442196,8.419351,3857.9,3857.2,1.1581]
[1761914442441,0.40679685,3857.5,3857.2,1.1581]
[1761914442624,0.0250478,3857.4,3857.2,1.1581]
[1761914442801,0.0250478,3857.4,3857.2,0.4847]
[1761914443592,2.22003879,3857.8,3857.2,0.4847]
[1761914443593,0.405504,3857.6,3857.2,0.4847]
[1761914443835,0.0250478,3857.5,3857.2,0.4847]
[1761914444127,0.3045437,3857.5,3857.2,0.4847]
[1761914444496,0.3045437,3857.5,3857.4,0.4847]
[1761914444497,0.0250478,3857.5,3857.4,0.4847]
[1761914444716,0.0250478,3857.5,3857.0,0.191]
[1761914444925,1.39968,3857.6,3857.1,0.4824]
[1761914445098,0.0250478,3857.5,3857.4,0.4847]
[1761914445299,0.0250478,3857.5,3857.1,0.4824]
[1761914445496,0.0250478,3857.5,3857.0,0.191]
[1761914445497,1.39968,3857.5,3857.0,0.191]
[1761914445731,0.1296,3857.0,3856.8,0.42356791]
[1761914445919,0.0250478,3856.9,3856.8,0.42356791]
[1761914446113,0.4305518,3856.9,3856.8,0.38700991]
[1761914446632,0.0250478,3856.9,3856.8,0.38700991]
[1761914446927,0.0250478,3857.0,3856.8,0.38700991]
[1761914447138,1.23716871,3856.9,3856.8,0.38700991]
[1761914447835,0.54985276,3856.9,3856.8,0.38700991]
[1761914448034,1.24032214,3856.9,3856.8,0.38700991]
[1761914448214,0.54985276,3856.9,3856.8,0.38700991]
[1761914448416,16.71244284,3856.9,3856.8,0.38700991]
[1761914448734,17.12701819,3856.9,3856.8,0.38700991]
[1761914449144,13.92724715,3856.9,3856.8,0.38700991]
[1761914449311,15.74217623,3856.9,3856.8,0.38700991]
[1761914449516,15.81763923,3856.9,3856.8,0.38700991]
[1761914449716,14.00271015,3856.9,3856.8,0.38700991]
[1761914449912,13.55391015,3856.9,3856.8,0.38700991]
[1761914450139,13.06661015,3856.9,3856.8,0.38700991]
[1761914450353,13.95802622,3856.9,3856.8,1.34580991]
[1761914450554,0.54985276,3856.9,3856.8,1.34580991]
[1761914451053,1.47357419,3856.9,3856.8,1.34580991]
[1761914451546,0.54985276,3856.9,3856.8,1.34580991]
[1761914451838,0.54905276,3856.9,3856.8,1.34580991]
[1761914452006,0.74505776,3856.9,3856.8,0.38700991]
[1761914452208,2.13100722,3856.9,3856.8,0.38700991]
[1761914452408,0.74505776,3856.9,3856.8,0.38700991]
[1761914452607,0.54905276,3856.9,3856.8,0.85670991]
[1761914452849,0.54905276,3856.9,3856.8,1.34580991]
[1761914453005,0.57410056,3856.9,3856.8,1.34580991]
[1761914453209,0.57410056,3856.9,3856.8,0.85670991]
[1761914453539,0.54905276,3856.9,3856.8,0.85670991]
[1761914453738,0.54905276,3856.9,3856.8,1.34580991]
[1761914454708,1.47350323,3856.9,3856.8,1.34580991]
[1761914454942,0.54905276,3856.9,3856.8,1.34580991]
[1761914455236,1.47345556,3856.9,3856.8,1.34580991]
[1761914455845,1.47445556,3856.9,3856.8,1.34580991]
[1761914456139,0.55005276,3856.9,3856.8,1.31290771]
[1761914457324,1.24334982,3856.9,3856.8,1.31290771]
[1761914457727,1.24334982,3856.9,3856.8,1.33883594]
[1761914458139,0.55005276,3856.9,3856.8,3.46919785]
[1761914459241,0.55005276,3856.9,3856.8,3.44326962]
[1761914459445,0.001,3856.9,3856.8,3.44326962]
[1761914460318,0.001,3856.9,3856.8,3.12788385]
[1761914460819,0.001,3856.9,3856.8,1.31290771]
[1761914461028,0.001,3856.9,3856.8,0.82380771]
[1761914461354,0.001,3856.9,3856.8,1.29170771]
[1761914461551,0.001,3856.9,3856.8,3.10668385]
[1761914461552,0.1306,3856.9,3856.8,3.10668385]
[1761914461753,0.1306,3856.9,3856.8,3.59885884]
[1761914462123,0.001,3856.9,3856.8,3.59885884]
[1761914462654,0.001,3856.9,3856.8,0.80410771]
[1761914463016,0.001,3856.9,3856.8,0.35410771]
[1761914463462,0.71934486,3856.9,3856.8,0.35410771]
[1761914463757,0.58033874,3856.9,3856.8,0.35410771]
[1761914463925,1.24817026,3856.9,3856.8,0.80410771]
[1761914464116,1.24817026,3856.9,3856.8,1.27200771]
[1761914464448,0.001,3856.9,3856.8,3.08698385]
[1761914464656,0.55529094,3856.9,3856.8,3.57718689]
[1761914464816,0.001,3856.9,3856.8,3.57718689]
[1761914465752,0.001,3856.9,3856.8,3.60311512]
[1761914466257,0.001,3856.9,3856.8,3.57718689]
[1761914467920,0.001,3856.9,3856.8,3.60311512]
[1761914468376,0.001,3856.9,3856.8,3.57718689]
[1761914468520,0.001,3856.9,3856.8,3.60311512]
[1761914469054,0.001,3856.9,3856.8,3.57718689]
[1761914469450,0.001,3856.9,3856.8,3.08698385]
[1761914470368,0.001,3856.9,3856.8,3.11291208]
[1761914470684,0.001,3856.9,3856.8,3.08698385]
[1761914472055,0.001,3856.9,3856.8,1.27200771]
[1761914472249,0.001,3856.9,3856.8,3.08698385]
[1761914472704,0.001,3856.9,3856.8,3.11291208]
[1761914472845,0.001,3856.9,3856.8,3.5771872]
[1761914473045,0.001,3856.9,3856.8,1.27200771]
[1761914473279,0.001,3856.9,3856.8,3.08698385]
[1761914474489,0.001,3856.9,3856.8,3.11291208]
[1761914475148,0.001,3856.9,3856.8,3.08698385]
[1761914476995,0.0002,3856.9,3856.8,3.08698385]
[1761914477194,0.0002,3856.9,3856.8,3.60311684]
[1761914477396,0.0002,3856.9,3856.8,3.57718861]
[1761914477609,0.0002,3856.9,3856.8,1.76221247]
[1761914477823,0.0002,3856.9,3856.8,1.27200771]
[1761914478118,0.0002,3856.9,3856.8,0.35410771]
[1761914478119,0.984,3856.9,3856.8,0.35410771]
[1761914478668,0.0002,3856.9,3856.8,0.35410771]
[1761914479021,0.5043,3856.9,3856.8,0.35410771]
[1761914479221,0.9841,3856.9,3856.8,0.35410771]
[1761914479533,1.26399797,3856.9,3856.8,0.35410771]
[1761914479868,1.81828891,3856.9,3856.8,0.35410771]
[1761914480418,25.09278671,3856.9,3856.8,0.35410771]
[1761914480582,24.25492299,3856.9,3856.8,0.35410771]
[1761914480778,24.66161034,3856.9,3856.8,0.35410771]
[1761914480995,26.46679434,3856.9,3856.8,0.35410771]
[1761914481309,24.65186526,3856.9,3856.8,0.35410771]
[1761914481611,40.40016026,3856.9,3856.8,0.35410771]
[1761914482099,19.44322693,3856.9,3856.8,0.35410771]
[1761914482301,14.96373693,3856.9,3856.8,0.35410771]
[1761914482509,37.25876093,3856.9,3856.8,0.35410771]
[1761914482802,19.65311093,3856.9,3856.8,0.35410771]
[1761914483007,21.46804001,3856.9,3856.8,0.35410771]
[1761914483304,21.18286934,3856.9,3856.8,0.35410771]
[1761914483471,42.21508934,3856.9,3856.8,0.35410771]
[1761914483668,42.62198455,3856.9,3856.8,0.35410771]
[1761914484398,12.62198455,3856.9,3856.8,0.35410771]
[1761914484601,42.62198455,3856.9,3856.8,0.35410771]
[1761914485100,41.72572504,3856.9,3856.8,0.35410771]
[1761914485305,42.90271898,3856.9,3856.8,0.35410771]
[1761914485629,33.62044254,3856.2,3856.1,0.005]
[1761914485798,41.71065728,3856.2,3856.1,0.005]
[1761914485999,40.80868125,3856.2,3856.1,0.005]
[1761914486220,42.18495378,3856.2,3856.1,0.005]
[1761914486728,40.80868125,3856.2,3856.1,0.005]
[1761914487029,19.54263696,3856.2,3856.1,0.005]
[1761914487227,19.03051745,3856.2,3856.1,0.005]
[1761914487609,35.25563145,3856.2,3856.1,0.005]
[1761914487824,28.61590391,3856.2,3856.1,0.005]
[1761914487994,29.27706245,3856.2,3856.1,0.005]
[1761914488329,27.46180391,3856.2,3856.1,0.005]
[1761914488502,18.07225891,3856.2,3856.1,0.005]
[1761914488706,15.30970816,3856.2,3856.1,0.005]
[1761914488927,5.42952591,3856.2,3856.1,0.005]
[1761914489428,7.20419791,3856.2,3856.1,0.005]
[1761914489628,7.463921,3856.2,3856.1,0.005]
[1761914489828,7.294509,3856.2,3856.1,0.005]
[1761914490000,4.926509,3856.2,3856.1,0.005]
[1761914490699,8.065301,3856.2,3856.1,0.005]
[1761914490895,1.39968,3856.2,3856.1,0.005]
[1761914491119,6.7449326,3856.2,3856.1,0.005]
[1761914491632,6.1032646,3856.2,3856.1,0.005]
[1761914491840,5.6965,3856.2,3856.1,0.005]
[1761914492129,6.0218,3856.2,3856.1,0.007]
[1761914492707,14.902999,3856.2,3856.1,0.007]
[1761914492906,5.27708,3856.2,3856.1,0.007]
[1761914493106,1.39968,3856.2,3856.1,0.007]
[1761914493328,1.40438,3856.2,3856.1,0.007]
[1761914493499,40.32148936,3856.2,3856.1,0.007]
[1761914493700,40.48546465,3856.2,3856.1,0.007]
[1761914493927,16.068196,3855.4,3855.1,0.01]
[1761914494133,10.186775,3855.2,3855.1,0.01]
[1761914494331,9.926893,3855.2,3855.1,0.01]
[1761914494497,10.401093,3855.2,3855.1,0.01]
[1761914494693,12.104257,3855.2,3855.1,0.01]
[1761914495337,13.909441,3855.2,3855.1,0.01]
[1761914495508,15.7251704,3855.2,3855.1,0.01]
[1761914495705,4.5824134,3855.2,3855.1,0.01]
[1761914495897,34.6074612,3855.2,3855.1,0.01]
[1761914496094,32.766684,3855.2,3855.1,0.01]
[1761914496401,6.308333,3855.2,3855.1,0.01]
[1761914496593,6.431533,3855.2,3855.1,0.01]
[1761914496796,7.439273,3855.2,3855.1,0.01]
[1761914497417,8.318477,3855.2,3855.1,0.01]
[1761914497811,32.402084,3855.2,3855.1,0.01]
[1761914498028,18.612125,3855.2,3855.1,0.01]
[1761914498503,17.500362,3855.2,3855.1,0.01]
[1761914498701,32.402084,3855.2,3855.1,0.01]
[1761914498924,22.886165,3855.2,3855.1,0.01]
[1761914499319,23.20498276,3855.2,3855.1,0.01]
[1761914499662,25.25085753,3855.2,3855.1,0.01]
[1761914499838,34.76677653,3855.2,3855.1,0.01]
[1761914500439,32.95104713,3855.2,3855.1,0.01]
[1761914500774,32.95104713,3855.2,3849.1,0.01]
[1761914500775,0.1823,3851.0,3849.1,0.01]
[1761914501090,1.39968,3847.9,3846.4,0.617]
[1761914501236,1.82974338,3847.4,3846.5,0.4599]
[1761914501419,1.82974338,3847.4,3846.0,0.1571]
[1761914501420,1.37230753,3846.6,3846.0,0.1171]
[1761914501618,0.9086036,3846.1,3846.0,0.1171]
[1761914501846,0.9086036,3846.1,3845.0,0.1571]
[1761914501847,0.54852938,3846.1,3845.8,0.1171]
[1761914502020,6.01524777,3846.6,3845.8,0.1171]
[1761914502021,1.82974338,3846.3,3845.8,0.1171]
[1761914502218,3.71661076,3846.7,3845.9,2.27999821]
[1761914502446,3.71661076,3846.7,3845.1,0.01]
[1761914502447,2.31693076,3846.1,3845.2,1.82045147]
[1761914502649,2.29113146,3846.0,3845.3,0.4599]
[1761914502816,3.24370306,3846.5,3845.3,0.4599]
[1761914502817,1.43217792,3846.4,3845.3,0.4599]
[1761914503177,3.24370306,3845.5,3844.5,0.1571]
[1761914503769,3.24370306,3845.9,3845.2,1.82041965]
[1761914504050,0.03250045,3846.1,3844.6,0.3143]
[1761914504051,3.27620605,3845.8,3844.6,0.3143]
[1761914504250,3.27620605,3845.8,3844.8,1.82064086]
[1761914504477,3.24370306,3845.4,3844.9,0.01401832]
[1761914504817,3.24370306,3845.7,3845.0,0.3143]
[1761914505049,3.24370306,3845.7,3845.2,1.8204359]
[1761914505248,3.24370306,3845.6,3845.2,1.8204359]
[1761914505464,0.03249961,3846.2,3845.2,1.8204359]
[1761914505465,3.24370306,3845.7,3845.3,1.82039161]
[1761914505648,3.24370306,3845.7,3845.5,1.82030945]
[1761914505824,3.24370306,3846.3,3845.7,1.82020924]
[1761914506027,3.24370306,3846.3,3845.4,0.3143]
[1761914506028,0.03249961,3846.2,3845.4,0.3143]
[1761914506378,1.40968,3846.7,3845.5,1.82030945]
[1761914506560,0.03249623,3846.6,3846.0,1.82004699]
[1761914506771,0.01,3846.7,3846.1,0.01400069]
[1761914506980,0.01,3846.7,3846.3,1.8199094]
[1761914507291,0.01,3846.7,3845.7,0.3143]
[1761914507599,1.33795935,3845.8,3845.7,0.3143]
[1761914507901,0.03249623,3846.6,3845.2,0.3143]
[1761914508190,0.03249623,3846.6,3845.5,1.82030238]
[1761914508345,0.03249623,3846.6,3845.6,0.01400583]
[1761914508546,0.03249623,3846.6,3845.8,1.8201335]
[1761914508735,0.03249623,3846.6,3845.6,0.3143]
[1761914508945,0.405504,3846.5,3845.1,0.3143]
[1761914509293,1.33635088,3845.7,3845.4,1.82034338]
[1761914509590,1.33635088,3845.7,3845.5,1.83431093]
[1761914509793,1.33635088,3845.7,3845.5,1.82029744]
[1761914509979,0.89020339,3845.7,3845.6,0.3143]
[1761914510276,1.33635088,3846.0,3845.9,1.82012012]
[1761914510277,0.89020339,3846.0,3845.9,1.82012012]
[1761914510502,0.89020339,3846.0,3845.7,1.82021478]
[1761914510503,0.89020339,3846.0,3845.7,0.01400679]
[1761914510793,0.89020339,3846.0,3844.5,0.1571]
[1761914510794,0.1889,3846.6,3845.5,0.002]
[1761914510963,1.33448924,3845.6,3845.5,0.002]
[1761914511402,1.33448924,3845.8,3845.6,1.82026211]
[1761914511550,0.01,3846.7,3845.8,1.82016745]
[1761914511551,0.66701139,3845.9,3845.8,1.82016745]
[1761914511873,0.66701139,3845.9,3845.8,2.13446745]
[1761914512074,0.66701139,3846.1,3846.0,1.8200728]
[1761914512275,0.66701139,3846.1,3846.0,2.1343728]
[1761914512439,0.88927152,3846.4,3845.8,1.82016745]
[1761914512440,0.66701139,3846.4,3846.3,1.81993084]
[1761914512873,0.66701139,3846.4,3846.3,2.13423084]
[1761914513098,0.89927152,3846.7,3846.3,2.13423084]
[1761914513099,0.66701139,3846.5,3846.3,2.13423084]
[1761914513366,0.66701139,3846.6,3846.5,1.81983621]
[1761914513567,0.01,3846.7,3846.4,2.14818179]
[1761914513568,0.01,3846.7,3846.6,1.8197889]
[1761914514188,0.01,3846.7,3846.6,2.1340889]
[1761914514189,0.54370437,3846.7,3846.6,2.1340889]
[1761914515648,0.66701139,3847.2,3847.0,1.81959968]
[1761914515991,0.66701139,3847.6,3847.5,1.81936322]
[1761914516145,1.7785212,3848.6,3847.5,6.03902806]
[1761914516342,0.01,3848.7,3847.5,6.02504903]
[1761914516571,0.01,3848.7,3848.6,1.77814011]
[1761914517045,0.01,3848.7,3848.6,1.68445009]
[1761914518475,0.01,3848.7,3845.3,1.554]
[1761914518681,0.01,3848.7,3848.6,1.81884321]
[1761914519360,1e-08,3848.7,3848.6,1.81884321]
[1761914520727,1e-08,3848.7,3848.6,7.97349224]
[1761914521219,1e-08,3848.7,3848.6,1.94844321]
[1761914522464,1e-08,3848.7,3848.6,2.35394721]
[1761914522695,1e-08,3848.7,3848.6,2.22434721]
[1761914523026,1e-08,3849.7,3849.6,1.81837073]
[1761914523299,1e-08,3849.7,3846.1,0.01]
[1761914523300,12.578337,3849.6,3846.1,0.01]
[1761914523610,12.578337,3849.6,3846.3,1.81993084]
[1761914523611,0.1941,3848.8,3846.3,1.81993084]
[1761914523918,0.03247174,3849.5,3848.2,1.81902874]
[1761914524121,0.4959,3849.4,3846.7,6.02504903]
[1761914524272,1e-08,3849.7,3849.2,1.81852055]
[1761914524614,1e-08,3849.7,3849.6,1.81837073]
[1761914525194,5.025291,3849.6,3847.1,0.01]
[1761914525504,0.03247174,3849.5,3848.2,1.81898637]
[1761914525671,0.4959,3849.5,3848.5,1.81888414]
[1761914525869,0.3663279,3849.6,3847.5,6.02504903]
[1761914526068,0.3663279,3849.6,3847.6,1.81931593]
[1761914526304,0.3663279,3849.6,3849.4,1.8184484]
[1761914526493,0.3663279,3849.6,3847.8,1.81922137]
[1761914526494,0.3663279,3849.6,3849.5,1.78178221]
[1761914527203,0.3663279,3849.6,3849.5,1.74516328]
[1761914527404,0.3655279,3849.6,3849.5,1.74516328]
[1761914527569,0.9068128,3849.6,3849.5,1.74516328]
[1761914527969,0.9068128,3849.6,3849.3,1.81850654]
[1761914527970,0.9068128,3849.6,3849.3,1.81846835]
[1761914528170,0.5412849,3849.5,3847.5,1.39968]
[1761914528369,0.5412849,3849.4,3849.3,1.81851245]
[1761914529920,0.3665279,3849.6,3849.5,1.81841797]
[1761914530127,1e-08,3849.7,3849.6,1.81837073]
[1761914532524,1e-08,3849.7,3849.6,1.94797073]
[1761914536722,1e-08,3849.7,3849.6,1.91499855]
[1761914538702,0.01,3851.7,3851.1,1.81764111]
[1761914538905,0.01,3851.7,3850.1,1.81809923]
[1761914538906,0.01,3851.7,3851.6,1.81742652]
[1761914539318,0.9459,3851.7,3851.6,1.81742652]
[1761914540415,0.4766,3851.7,3851.6,1.81742652]
[1761914540731,0.9462,3851.7,3851.6,1.81742652]